bitfinex/quotes_BTCUSD_20260310
["timestamp","ask_amount","ask_price","bid_price","bid_amount"]
[1773162240308,0.03,71262.0,71261.0,0.00144]
[1773162240478,0.03,71262.0,71253.0,0.0089105]
[1773162240685,0.03,71262.0,71254.0,0.00144]
[1773162240904,0.03,71262.0,71252.0,0.07017342]
[1773162240905,0.03,71262.0,71250.0,0.05935186]
[1773162241147,0.03,71260.0,71245.0,0.07017965]
[1773162241355,0.03,71260.0,71246.0,0.00144]
[1773162241519,0.03,71260.0,71246.0,0.06079186]
[1773162241932,0.13935239,71269.0,71246.0,0.06079186]
[1773162241933,0.05784884,71268.0,71249.0,0.07017642]
[1773162242140,0.0302,71269.0,71252.0,0.05935186]
[1773162242351,0.0302,71269.0,71254.0,0.05935186]
[1773162242491,0.0302,71269.0,71253.0,0.00991955]
[1773162242492,0.0302,71269.0,71256.0,0.05935186]
[1773162242702,0.05801204,71274.0,71258.0,0.05935186]
[1773162242703,0.0001632,71274.0,71258.0,0.05935186]
[1773162242902,0.0001632,71274.0,71260.0,0.05935186]
[1773162243126,0.03,71277.0,71262.0,0.05935186]
[1773162243333,0.11162948,71293.0,71262.0,0.05935186]
[1773162243529,0.11162948,71293.0,71260.0,0.15766794]
[1773162243530,0.0704495,71292.0,71264.0,0.05935186]
[1773162243876,0.0704495,71292.0,71260.0,0.15766794]
[1773162243877,0.05784884,71291.0,71266.0,0.05935186]
[1773162244023,0.05784884,71289.0,71267.0,0.12951055]
[1773162244213,0.08784884,71288.0,71267.0,0.07015869]
[1773162244417,0.08784884,71288.0,71268.0,0.05935186]
[1773162244844,0.03,71288.0,71270.0,0.05935186]
[1773162245219,0.03,71289.0,71270.0,0.05935186]
[1773162246303,0.0303153,71292.0,71272.0,0.05935186]
[1773162246499,0.15829868,71292.0,71272.0,0.05935186]
[1773162246699,0.03,71288.0,71272.0,0.05935186]
[1773162246900,0.03,71282.0,71265.0,0.07016066]
[1773162247103,0.03,71280.0,71266.0,0.00144]
[1773162247442,0.03,71278.0,71260.0,0.07016559]
[1773162247645,0.03,71272.0,71261.0,0.00144]
[1773162247852,0.03,71270.0,71261.0,0.00144]
[1773162248187,0.03,71270.0,71258.0,0.07028008]
[1773162248558,0.03,71270.0,71259.0,0.00144]
[1773162248828,0.03,71269.0,71259.0,0.07160614]
[1773162249048,0.03,71269.0,71260.0,0.00144]
[1773162249894,0.03,71271.0,71260.0,0.00144]
[1773162250491,0.03,71269.0,71258.0,0.0001126]
[1773162250692,0.03,71269.0,71259.0,0.00144]
[1773162250893,0.03,71269.0,71258.0,0.0001126]
[1773162251078,0.08784884,71269.0,71260.0,0.00144]
[1773162251283,0.07015011,71276.0,71261.0,0.00830313]
[1773162251478,0.03,71275.0,71261.0,0.00830313]
[1773162251700,0.03,71275.0,71262.0,0.00144]
[1773162252036,0.03,71273.0,71258.0,0.0001126]
[1773162252209,0.07015011,71276.0,71258.0,0.0001126]
[1773162252210,0.03,71271.0,71263.0,0.00144]
[1773162252418,0.03,71269.0,71258.0,0.0001126]
[1773162252618,0.03,71269.0,71264.0,0.00144]
[1773162252619,0.08784884,71269.0,71264.0,0.00144]
[1773162252794,0.1580056,71269.0,71258.0,0.0001126]
[1773162253016,0.10015676,71269.0,71259.0,0.00144]
[1773162254115,0.10015676,71269.0,71258.0,0.0001126]
[1773162254281,0.03,71267.0,71260.0,0.00144]
[1773162254891,0.10015915,71267.0,71260.0,0.00144]
[1773162255536,0.03,71265.0,71250.0,0.00023]
[1773162255740,0.03,71261.0,71250.0,0.00023]
[1773162255941,0.03,71259.0,71251.0,0.00144]
[1773162256261,0.03,71259.0,71250.0,0.00023]
[1773162256614,0.03,71259.0,71251.0,0.00144]
[1773162256828,0.0579615,71265.0,71251.0,0.071614]
[1773162256983,0.00011266,71265.0,71251.0,0.071614]
[1773162257186,0.0702736,71265.0,71251.0,0.00144]
[1773162257616,0.0702736,71265.0,71251.0,0.07161441]
[1773162257812,0.12812244,71265.0,71251.0,0.00144]
[1773162258089,0.03,71264.0,71251.0,0.0716137]
[1773162258855,0.10016188,71264.0,71251.0,0.00144]
[1773162259239,0.03,71264.0,71251.0,0.06324285]
[1773162259413,0.03,71263.0,71253.0,0.06180285]
[1773162259591,0.13906459,71269.0,71254.0,0.00851012]
[1773162259793,0.07014791,71278.0,71256.0,0.06180285]
[1773162260001,0.07014791,71278.0,71258.0,0.06180285]
[1773162260198,0.07014791,71278.0,71260.0,0.06180285]
[1773162260397,0.08784265,71277.0,71261.0,0.00994928]
[1773162260802,0.03,71277.0,71262.0,0.07016362]
[1773162261012,0.03,71277.0,71264.0,0.06180285]
[1773162261405,0.03,71282.0,71264.0,0.06180285]
[1773162262228,0.0302,71282.0,71264.0,0.06180285]
[1773162262581,0.03,71281.0,71264.0,0.06180285]
[1773162262759,0.001,71278.0,71264.0,0.06180285]
[1773162263114,0.03,71281.0,71266.0,0.06180285]
[1773162263315,0.03,71279.0,71264.0,0.07016066]
[1773162263581,0.03,71277.0,71267.0,0.00144]
[1773162263988,0.03,71277.0,71264.0,0.07016066]
[1773162263989,0.03,71277.0,71264.0,0.001]
[1773162264222,0.03,71277.0,71268.0,0.00144]
[1773162264605,0.03,71276.0,71269.0,0.00144]
[1773162265729,0.03,71275.0,71269.0,0.00144]
[1773162266833,0.03,71274.0,71269.0,0.00144]
[1773162267199,0.0002,71282.0,71270.0,0.06180285]
[1773162267410,0.12288629,71282.0,71269.0,0.00144]
[1773162267611,0.05254181,71281.0,71269.0,0.00144]
[1773162267804,0.03,71280.0,71270.0,0.00144]
[1773162269387,0.0002,71282.0,71272.0,0.06180285]
[1773162271092,0.0002,71282.0,71273.0,0.00144]
[1773162271295,0.0302,71282.0,71269.0,0.07015619]
[1773162271498,0.0302,71282.0,71270.0,0.00144]
[1773162271698,0.0302,71282.0,71270.0,0.06324285]
[1773162272324,0.03,71281.0,71270.0,0.06324285]
[1773162273315,0.03,71281.0,71271.0,0.06180285]
[1773162273519,0.0002,71282.0,71271.0,0.06180285]
[1773162275274,0.0002,71282.0,71272.0,0.06180285]
[1773162277681,0.0002,71282.0,71273.0,0.00144]
[1773162279275,0.0002,71282.0,71273.0,0.07159277]
[1773162279662,0.0002,71282.0,71273.0,0.00144]
[1773162280484,0.08804265,71282.0,71273.0,0.00144]
[1773162280694,0.08804265,71282.0,71268.0,0.06180285]
[1773162280941,0.08804265,71282.0,71269.0,0.06324285]
[1773162281556,0.08804265,71282.0,71269.0,0.06180285]
[1773162281751,0.08804265,71282.0,71270.0,0.00144]
[1773162282161,0.0302,71282.0,71266.0,0.07015968]
[1773162282363,0.03,71281.0,71267.0,0.00144]
[1773162282562,0.03,71279.0,71267.0,0.00144]
[1773162282770,0.08784265,71275.0,71268.0,0.00144]
[1773162283109,0.08784265,71268.0,71257.0,0.07038821]
[1773162283323,0.08784265,71268.0,71257.0,0.00022]
[1773162283537,0.03,71264.0,71257.0,0.00022]
[1773162283735,0.03,71264.0,71258.0,0.00144]
[1773162285336,0.03,71271.0,71258.0,0.07160721]
[1773162285541,0.03,71271.0,71259.0,0.06180285]
[1773162286378,0.03,71271.0,71259.0,0.13196942]
[1773162286594,0.03,71270.0,71259.0,0.06180285]
[1773162287051,0.03,71270.0,71258.0,0.00144]
[1773162287260,0.06127484,71265.0,71257.0,0.00022]
[1773162287464,0.09127484,71259.0,71258.0,0.00144]
[1773162287963,0.03,71257.0,71254.0,0.00011266]
[1773162288164,0.20935429,71269.0,71255.0,0.00144]
[1773162288388,0.07015402,71272.0,71256.0,0.05770297]
[1773162288715,0.07015402,71272.0,71254.0,0.00011266]
[1773162288716,0.05355197,71269.0,71254.0,0.00011266]
[1773162288919,0.03,71266.0,71254.0,0.00144]
[1773162289145,0.07015831,71268.0,71254.0,0.00144]
[1773162289367,0.00023933,71267.0,71254.0,0.00144]
[1773162290294,0.00028938,71266.0,71254.0,0.00144]
[1773162290639,0.03,71267.0,71254.0,0.00144]
[1773162290784,0.03,71267.0,71258.0,0.00022]
[1773162291205,0.03,71266.0,71259.0,0.06402532]
[1773162292236,0.07015605,71270.0,71259.0,0.06402532]
[1773162292237,0.03,71265.0,71259.0,0.06402532]
[1773162293041,0.07015339,71273.0,71259.0,0.06402532]
[1773162293256,0.03,71272.0,71259.0,0.06402532]
[1773162294273,0.03,71271.0,71259.0,0.06402532]
[1773162294696,0.03,71271.0,71260.0,0.00144]
[1773162295251,0.03,71272.0,71260.0,0.00144]
[1773162295470,0.03727539,71272.0,71260.0,0.00144]
[1773162295750,0.03,71272.0,71261.0,0.06546532]
[1773162296278,0.13916647,71278.0,71261.0,0.06546532]
[1773162296279,0.0001735,71284.0,71262.0,0.00727651]
[1773162296449,0.0001735,71284.0,71263.0,0.06402532]
[1773162296648,0.07034402,71282.0,71260.0,0.06402532]
[1773162296920,0.07034402,71282.0,71264.0,0.00144]
[1773162297107,0.07034402,71282.0,71264.0,0.06546532]
[1773162297245,0.03,71281.0,71264.0,0.06546532]
[1773162297656,0.03,71281.0,71265.0,0.00144]
[1773162298666,0.03,71279.0,71267.0,0.06402532]
[1773162298899,0.03,71279.0,71269.0,0.06402532]
[1773162299022,0.03,71279.0,71271.0,0.06402532]
[1773162299227,0.03,71279.0,71272.0,0.06546532]
[1773162299533,0.0002,71282.0,71273.0,0.00144]
[1773162299957,0.0001735,71284.0,71274.0,0.06402532]
[1773162300159,0.07033736,71289.0,71274.0,0.06402532]
[1773162300371,0.0002,71289.0,71274.0,0.06402532]
[1773162300588,0.03,71288.0,71274.0,0.06402532]
[1773162300771,0.03,71288.0,71275.0,0.00144]
[1773162301368,0.0016402,71295.0,71276.0,0.06402532]
[1773162301369,0.0002002,71295.0,71276.0,0.06402532]
[1773162301579,0.0302002,71295.0,71276.0,0.06402532]
[1773162301977,0.00585,71300.0,71276.0,0.06402532]
[1773162302511,0.00622605,71300.0,71276.0,0.06402532]
[1773162302906,0.03,71298.0,71276.0,0.06402532]
[1773162303103,0.03,71296.0,71278.0,0.05925895]
[1773162303310,0.03,71294.0,71278.0,0.12940583]
[1773162303512,0.03,71294.0,71279.0,0.06069895]
[1773162303715,0.03,71294.0,71279.0,0.00144]
[1773162303923,0.0701305,71296.0,71258.0,0.0703873]
[1773162303924,0.03,71287.0,71267.0,0.07035879]
[1773162304125,0.09235327,71285.0,71268.0,0.06069895]
[1773162304340,0.03,71285.0,71268.0,0.06069895]
[1773162305197,0.03,71284.0,71271.0,0.07015476]
[1773162305400,0.03,71284.0,71272.0,0.05925895]
[1773162305605,0.07012803,71299.0,71272.0,0.05925895]
[1773162306046,0.03,71299.0,71272.0,0.05925895]
[1773162306255,0.03,71299.0,71272.0,0.01791599]
[1773162306430,0.03,71299.0,71273.0,0.05925895]
[1773162306625,0.03,71299.0,71275.0,0.05925895]
[1773162306890,0.03,71299.0,71277.0,0.05925895]
[1773162307021,0.09235327,71297.0,71278.0,0.00144]
[1773162307218,0.09235327,71297.0,71280.0,0.0701459]
[1773162307547,0.09235327,71297.0,71281.0,0.05925895]
[1773162308129,0.03,71296.0,71281.0,0.05925895]
[1773162308840,0.00622605,71300.0,71281.0,0.05925895]
[1773162309216,0.00622605,71300.0,71282.0,0.07014393]
[1773162309547,0.00622605,71300.0,71283.0,0.06069895]
[1773162310739,0.00622605,71300.0,71283.0,0.05925895]
[1773162310958,0.0703102,71317.0,71282.0,0.07014393]
[1773162310959,0.0002002,71317.0,71291.0,0.05925895]
[1773162311183,0.00026075,71314.0,71291.0,0.05925895]
[1773162311386,0.06235327,71312.0,71292.0,0.07157409]
[1773162311723,0.06235327,71312.0,71293.0,0.05925895]
[1773162311914,0.03,71311.0,71293.0,0.05925895]
[1773162312279,0.06235327,71310.0,71294.0,0.00144]
[1773162312485,0.03,71309.0,71294.0,0.00144]
[1773162312895,0.03,71309.0,71295.0,0.05925895]
[1773162313090,0.03,71309.0,71281.0,0.05925895]
[1773162313316,0.09235327,71305.0,71282.0,0.07158393]
[1773162313544,0.09235327,71305.0,71283.0,0.06069895]
[1773162313747,0.09235327,71305.0,71285.0,0.05925895]
[1773162314067,0.09235327,71305.0,71287.0,0.05925895]
[1773162314879,0.09235327,71305.0,71288.0,0.00144]
[1773162315240,0.09235327,71305.0,71288.0,0.06069895]
[1773162315593,0.03,71303.0,71289.0,0.00144]
[1773162315918,0.03,71303.0,71290.0,0.00144]
[1773162316116,0.03,71303.0,71284.0,0.12939997]
[1773162316117,0.03,71299.0,71284.0,0.05925895]
[1773162316328,0.03,71299.0,71285.0,0.00144]
[1773162316529,0.0002,71305.0,71286.0,0.07019662]
[1773162317083,0.0002,71305.0,71288.0,0.05925895]
[1773162317209,0.0002,71305.0,71290.0,0.05925895]
[1773162317413,0.0002,71305.0,71292.0,0.05925895]
[1773162317639,0.0002,71305.0,71293.0,0.00144]
[1773162317817,0.0002,71305.0,71293.0,0.06069895]
[1773162319294,0.03,71310.0,71295.0,0.06231614]
[1773162319469,0.0002,71316.0,71295.0,0.06231614]
[1773162319712,0.0002,71316.0,71297.0,0.06231614]
[1773162320290,0.01440783,71321.0,71297.0,0.06231614]
[1773162320506,0.08451391,71321.0,71299.0,0.0625621]
[1773162321340,0.03,71320.0,71299.0,0.0625621]
[1773162321477,0.0001732,71324.0,71300.0,0.07012622]
[1773162321693,0.0001732,71324.0,71301.0,0.0625621]
[1773162322700,0.03,71327.0,71301.0,0.0625621]
[1773162322924,0.03,71327.0,71310.0,0.15756203]
[1773162323176,0.00286842,71334.0,71313.0,0.0625621]
[1773162323380,0.030214,71347.0,71315.0,0.0625621]
[1773162323601,0.03,71345.0,71317.0,0.0625621]
[1773162323809,0.03048705,71345.0,71317.0,0.0625621]
[1773162324429,0.03,71345.0,71319.0,0.0625621]
[1773162324629,0.03,71339.0,71319.0,0.0625621]
[1773162324840,0.03,71339.0,71316.0,0.07011049]
[1773162324841,0.03,71339.0,71321.0,0.0625621]
[1773162325406,0.03,71339.0,71322.0,0.00144]
[1773162325609,0.10020062,71339.0,71323.0,0.13266499]
[1773162325809,0.00016433,71335.0,71309.0,0.0625621]
[1773162326083,0.00016433,71335.0,71311.0,0.0625621]
[1773162326265,0.00016433,71328.0,71310.0,0.00144]
[1773162326475,0.03,71329.0,71312.0,0.0625621]
[1773162326650,0.03,71329.0,71314.0,0.0625621]
[1773162326850,0.03,71329.0,71316.0,0.0625621]
[1773162327050,0.03,71329.0,71317.0,0.00144]
[1773162327256,0.13842468,71337.0,71316.0,0.0625621]
[1773162327257,0.03,71328.0,71318.0,0.00144]
[1773162327453,0.03,71328.0,71319.0,0.06231614]
[1773162327626,0.03,71328.0,71319.0,0.13242332]
[1773162327832,0.03,71328.0,71320.0,0.00144]
[1773162328378,0.07009192,71335.0,71320.0,0.00144]
[1773162328379,0.03,71334.0,71320.0,0.00144]
[1773162328582,0.10009301,71334.0,71320.0,0.00144]
[1773162328821,0.10009301,71334.0,71317.0,0.07010914]
[1773162328822,0.13842468,71337.0,71318.0,0.07010821]
[1773162329044,0.20851455,71337.0,71321.0,0.06375614]
[1773162329415,0.03,71336.0,71321.0,0.06375614]
[1773162330005,0.03,71334.0,71310.0,0.02116874]
[1773162330329,0.00506768,71328.0,71311.0,0.00144]
[1773162330530,0.20851462,71337.0,71312.0,0.06231614]
[1773162330699,0.0700899,71337.0,71312.0,0.07715676]
[1773162330906,0.0700899,71337.0,71312.0,0.02203949]
[1773162331185,0.0700899,71337.0,71313.0,0.06231614]
[1773162331376,0.03,71337.0,71315.0,0.06231614]
[1773162331534,0.03,71337.0,71317.0,0.07848921]
[1773162331745,0.03,71337.0,71319.0,0.07848921]
[1773162331956,0.00011266,71339.0,71321.0,0.07848921]
[1773162332109,0.00011266,71339.0,71323.0,0.07848921]
[1773162332719,0.54407856,71333.0,71323.0,0.07848921]
[1773162332924,0.4300982,71333.0,71323.0,0.07848921]
[1773162334088,0.00011266,71339.0,71325.0,0.07010164]
[1773162334283,0.00011266,71339.0,71326.0,0.07911371]
[1773162335222,0.00011266,71339.0,71327.0,0.07911371]
[1773162335630,0.00011266,71339.0,71327.0,0.0910693]
[1773162335832,0.13511868,71352.0,71329.0,0.06258629]
[1773162336028,0.00562,71356.0,71330.0,0.07009673]
[1773162336252,0.00562,71356.0,71331.0,0.06258629]
[1773162336682,0.000214,71359.0,71331.0,0.06258629]
[1773162337716,0.000214,71359.0,71333.0,0.06472174]
[1773162337895,0.000214,71359.0,71335.0,0.06472174]
[1773162338105,0.000214,71359.0,71336.0,0.07009083]
[1773162338307,0.000214,71359.0,71337.0,0.06472174]
[1773162339264,0.03,71364.0,71338.0,1.462487]
[1773162339478,0.03,71364.0,71342.0,0.06465152]
[1773162339644,0.03,71364.0,71343.0,0.00144]
[1773162339847,0.03,71364.0,71344.0,0.06457765]
[1773162340051,0.07511264,71374.0,71350.0,0.15714681]
[1773162340052,0.07251664,71374.0,71350.0,0.15714681]
[1773162340254,0.00023,71375.0,71354.0,0.36942]
[1773162340436,0.00023,71375.0,71357.0,0.06450378]
[1773162340632,0.00023,71375.0,71359.0,0.06450378]
[1773162341270,0.00562,71384.0,71358.0,0.00144]
[1773162341271,0.00562,71384.0,71361.0,0.06450378]
[1773162341479,0.03,71394.0,71371.0,0.06451115]
[1773162341798,0.03,71394.0,71360.0,0.31512406]
[1773162341799,0.03011265,71394.0,71373.0,0.06451115]
[1773162341991,0.03011265,71394.0,71375.0,0.06451115]
[1773162342152,0.03011265,71394.0,71376.0,0.07005155]
[1773162342351,0.03,71393.0,71377.0,0.06451115]
[1773162343073,0.00011265,71394.0,71377.0,0.06451115]
[1773162343074,0.03,71391.0,71377.0,0.06451115]
[1773162343246,0.03,71391.0,71378.0,0.00144]
[1773162343885,0.03,71391.0,71379.0,0.06482626]
[1773162344879,0.03,71389.0,71379.0,0.00144]
[1773162345049,0.03,71389.0,71363.0,0.07006381]
[1773162345554,0.03,71389.0,71364.0,0.00144]
[1773162345801,0.03,71390.0,71364.0,0.00144]
[1773162345973,0.00144,71389.0,71365.0,0.00144]
[1773162346355,0.03,71390.0,71365.0,0.00144]
[1773162346557,0.00144,71389.0,71365.0,0.00144]
[1773162346880,0.03,71387.0,71366.0,0.07006137]
[1773162347026,0.03,71387.0,71366.0,0.13488292]
[1773162347802,0.03,71387.0,71365.0,0.00144]
[1773162347803,6.641e-05,71386.0,71365.0,0.00144]
[1773162348146,6.641e-05,71386.0,71365.0,0.07150158]
[1773162348353,0.07003978,71388.0,71365.0,0.07150158]
[1773162348354,0.0700321,71396.0,71366.0,0.06474093]
[1773162348557,0.07014685,71394.0,71368.0,0.07005941]
[1773162348791,0.07014685,71394.0,71369.0,0.06474093]
[1773162349201,0.07003683,71391.0,71369.0,0.06474093]
[1773162349417,0.03,71390.0,71370.0,0.00144]
[1773162349666,0.03,71390.0,71371.0,0.06621414]
[1773162350162,0.03,71390.0,71375.0,0.00048]
[1773162350370,0.03,71390.0,71368.0,0.07005941]
[1773162350679,0.03,71388.0,71369.0,0.00144]
[1773162350903,0.03,71388.0,71370.0,0.00144]
[1773162351153,0.03,71388.0,71365.0,0.06477414]
[1773162351421,0.00023,71400.0,71371.0,0.06477414]
[1773162351616,0.0700174,71411.0,71375.0,0.532523]
[1773162351824,0.14447483,71414.0,71382.0,1.485911]
[1773162352035,0.14447483,71414.0,71380.0,0.15756203]
[1773162352036,0.14447483,71414.0,71384.0,1.400931]
[1773162352237,0.14447483,71414.0,71383.0,0.00144]
[1773162352238,0.21448981,71414.0,71385.0,0.06443193]
[1773162352473,0.00031325,71411.0,71385.0,0.06443193]
[1773162352736,0.0700182,71410.0,71387.0,0.07004076]
[1773162352929,0.00025517,71408.0,71387.0,0.07004076]
[1773162353537,0.00025517,71408.0,71388.0,0.06455089]
[1773162353744,0.0700182,71410.0,71380.0,0.07004762]
[1773162353745,0.03,71397.0,71380.0,0.07004762]
[1773162353943,0.03,71397.0,71381.0,0.00144]
[1773162354147,0.03,71397.0,71382.0,0.06455089]
[1773162354493,0.03,71397.0,71380.0,0.0795576]
[1773162354494,0.03,71397.0,71384.0,0.06455089]
[1773162354642,0.03,71397.0,71384.0,0.13459383]
[1773162354846,0.03,71396.0,71385.0,0.00144]
[1773162355640,0.03,71396.0,71385.0,0.06455951]
[1773162355876,0.03,71399.0,71386.0,0.00144]
[1773162356403,0.03,71399.0,71387.0,0.00144]
[1773162356789,0.03,71399.0,71388.0,0.07003923]
[1773162356937,0.03,71399.0,71389.0,0.06426416]
[1773162357582,0.00562,71412.0,71389.0,0.06426416]
[1773162358655,0.03562,71412.0,71392.0,0.07003585]
[1773162358897,0.03562,71412.0,71393.0,0.06433096]
[1773162359204,0.03562,71412.0,71395.0,0.06433096]
[1773162359205,0.10563625,71412.0,71395.0,0.06433096]
[1773162359367,0.03562,71412.0,71395.0,0.06433096]
[1773162359865,0.03,71411.0,71396.0,0.00144]
[1773162360109,0.03,71411.0,71396.0,0.06583776]
[1773162360892,0.03,71410.0,71398.0,0.06439776]
[1773162361591,0.03,71410.0,71399.0,0.0679642]
[1773162361794,0.00562,71412.0,71409.0,0.01301225]
[1773162362130,0.21411041,71423.0,71410.0,0.00144]
[1773162362284,0.21411041,71423.0,71402.0,0.0665242]
[1773162362285,0.14421738,71423.0,71411.0,0.00144]
[1773162362485,0.02902084,71427.0,71397.0,0.07003095]
[1773162362486,0.08635269,71427.0,71412.0,0.00144]
[1773162362745,0.03,71426.0,71413.0,0.00144]
[1773162363137,0.03,71426.0,71412.0,0.00011255]
[1773162363449,0.03,71426.0,71404.0,0.07002346]
[1773162363450,0.03,71426.0,71413.0,0.00144]
[1773162363598,0.03011248,71426.0,71414.0,0.00144]
[1773162363802,0.03011248,71426.0,71415.0,0.00144]
[1773162364002,0.03011248,71426.0,71416.0,0.00144]
[1773162364223,0.03011248,71426.0,71417.0,0.00144]
[1773162364423,0.03011248,71426.0,71418.0,0.00144]
[1773162364830,0.03,71424.0,71418.0,0.00144]
[1773162365232,0.03,71424.0,71405.0,0.0700231]
[1773162365399,0.03,71424.0,71400.0,0.00023]
[1773162365607,0.03,71424.0,71401.0,0.00144]
[1773162366110,0.03,71424.0,71386.0,0.07004145]
[1773162366111,0.03,71419.0,71386.0,0.07004145]
[1773162366298,0.03,71419.0,71387.0,0.07148076]
[1773162366540,0.00144,71418.0,71388.0,0.06636468]
[1773162366945,0.03,71416.0,71389.0,0.0700388]
[1773162367189,0.03,71416.0,71392.0,0.06636468]
[1773162367422,0.03,71416.0,71394.0,0.06636468]
[1773162367556,0.03,71416.0,71396.0,0.06631266]
[1773162367758,0.03,71416.0,71398.0,0.06631266]
[1773162367963,0.03,71415.0,71396.0,0.06631266]
[1773162368980,0.03,71413.0,71397.0,0.00144]
[1773162369196,0.03,71413.0,71398.0,0.00144]
[1773162369598,0.03,71413.0,71386.0,0.06631266]
[1773162369800,0.03,71413.0,71387.0,0.00144]
[1773162370001,0.03,71412.0,71388.0,0.00144]
[1773162370202,0.03,71412.0,71389.0,0.0662443]
[1773162370606,0.03,71412.0,71389.0,0.09257378]
[1773162370838,0.03,71412.0,71398.0,0.001]
[1773162371022,0.03,71411.0,71399.0,0.00144]
[1773162371221,0.03,71411.0,71400.0,0.0662443]
[1773162371812,0.03,71411.0,71386.0,0.06617033]
[1773162371813,0.10001722,71411.0,71386.0,0.06617033]
[1773162372021,0.10001722,71411.0,71385.0,0.07004272]
[1773162372022,0.10001722,71411.0,71388.0,0.06617033]
[1773162372222,0.10001722,71411.0,71390.0,0.06617033]
[1773162372641,0.03,71411.0,71390.0,0.06617033]
[1773162372848,0.03,71410.0,71392.0,0.06617033]
[1773162373040,0.03,71410.0,71394.0,0.06617033]
[1773162373342,0.03,71410.0,71396.0,0.06617033]
[1773162373547,0.03,71410.0,71393.0,0.07003487]
[1773162373548,0.10001831,71410.0,71393.0,0.07003487]
[1773162373714,0.10001831,71410.0,71394.0,0.00144]
[1773162374146,0.10001831,71410.0,71395.0,0.00144]
[1773162374355,0.03,71410.0,71396.0,0.00144]
[1773162374555,0.07001601,71413.0,71396.0,0.00144]
[1773162374556,0.03,71409.0,71396.0,0.06754198]
[1773162374825,0.03,71409.0,71387.0,0.07004076]
[1773162375037,0.07002016,71408.0,71389.0,0.0700388]
[1773162375241,0.06855718,71408.0,71389.0,0.0700388]
[1773162375434,0.06855718,71408.0,71389.0,0.13614078]
[1773162375642,0.07001989,71420.0,71390.0,0.0660114]
[1773162375858,0.00023,71425.0,71399.0,0.0660114]
[1773162376072,0.00023,71425.0,71401.0,0.10303897]
[1773162376269,0.00023,71425.0,71403.0,0.0660114]
[1773162376476,0.00023,71425.0,71405.0,0.0660114]
[1773162377262,0.00023,71425.0,71407.0,0.0660114]
[1773162377411,0.00023,71425.0,71409.0,0.06592411]
[1773162378695,0.00023,71425.0,71410.0,0.00144]
[1773162378696,0.03,71424.0,71410.0,0.00144]
[1773162378906,0.03,71422.0,71411.0,0.00144]
[1773162379127,0.03,71420.0,71412.0,0.00144]
[1773162379341,0.03,71418.0,71413.0,0.00144]
[1773162379547,0.03,71418.0,71414.0,0.00144]
[1773162379754,0.03,71418.0,71415.0,0.00144]
[1773162379970,0.03,71418.0,71416.0,0.00144]
[1773162380383,0.03,71417.0,71416.0,0.00144]
[1773162381503,0.03,71421.0,71416.0,0.00144]
[1773162381898,0.03,71419.0,71407.0,0.06695545]
[1773162382100,0.03,71419.0,71408.0,0.00144]
[1773162382707,0.08930995,71422.0,71400.0,0.0700271]
[1773162382708,0.03,71417.0,71403.0,0.07002506]
[1773162382891,0.0700076,71421.0,71404.0,0.00144]
[1773162382892,0.03,71415.0,71404.0,0.00144]
[1773162383091,0.03,71415.0,71403.0,0.07002506]
[1773162383431,0.03,71415.0,71406.0,0.07002212]
[1773162383669,0.03,71415.0,71407.0,0.00144]
[1773162383807,0.03,71419.0,71407.0,0.00144]
[1773162384222,0.00023,71425.0,71408.0,0.06698835]
[1773162384975,0.03,71424.0,71409.0,0.00144]
[1773162385173,0.03,71424.0,71404.0,0.07002313]
[1773162385407,0.03,71424.0,71405.0,0.00144]
[1773162385575,0.03,71422.0,71406.0,0.00144]
[1773162385928,0.03,71422.0,71403.0,0.07002506]
[1773162386122,0.03,71422.0,71404.0,0.00144]
[1773162386348,0.03,71422.0,71405.0,0.00144]
[1773162386955,0.03,71423.0,71406.0,0.06690101]
[1773162387127,0.03,71423.0,71408.0,0.06690101]
[1773162387333,0.03,71423.0,71406.0,0.06690101]
[1773162387750,0.1000056,71423.0,71406.0,0.07002141]
[1773162387958,0.1000056,71423.0,71407.0,0.00144]
[1773162388334,0.03,71423.0,71407.0,0.00144]
[1773162388467,0.03,71422.0,71409.0,0.06680429]
[1773162389294,0.03,71422.0,71410.0,0.06680429]
[1773162389457,0.00023,71425.0,71410.0,0.06680429]
[1773162389863,0.00023,71425.0,71411.0,0.07001722]
[1773162391027,0.03,71424.0,71412.0,0.00144]
[1773162391234,0.03,71424.0,71413.0,0.00144]
[1773162391383,0.03,71424.0,71403.0,0.07002421]
[1773162391790,0.03,71424.0,71404.0,0.00144]
[1773162392028,0.03,71422.0,71405.0,0.0700231]
[1773162392233,0.03,71422.0,71406.0,0.00144]
[1773162392430,0.03,71422.0,71407.0,0.00144]
[1773162392753,0.07031794,71426.0,71398.0,0.07002997]
[1773162392754,0.01635114,71427.0,71409.0,0.06666343]
[1773162392968,0.03,71426.0,71411.0,0.06666343]
[1773162393156,0.03,71426.0,71410.0,0.02776673]
[1773162393157,0.03,71426.0,71413.0,0.06666343]
[1773162393839,0.03,71426.0,71414.0,0.00144]
[1773162394022,0.03,71426.0,71415.0,0.0700133]
[1773162394853,0.03,71426.0,71414.0,0.00144]
[1773162395169,0.03,71426.0,71414.0,0.07145349]
[1773162395670,0.03,71426.0,71415.0,0.10149375]
[1773162396476,0.03,71426.0,71415.0,0.17150661]
[1773162396887,0.03,71426.0,71406.0,0.07002167]
[1773162396888,0.1000026,71426.0,71405.0,0.10149375]
[1773162397083,0.1000026,71426.0,71407.0,0.10149375]
[1773162397084,0.03,71426.0,71407.0,0.10149375]
[1773162397285,0.10000262,71426.0,71407.0,0.10149375]
[1773162397679,0.10000262,71426.0,71409.0,0.10232742]
[1773162400251,0.10000262,71426.0,71410.0,0.00144]
[1773162400430,0.10000262,71426.0,71409.0,0.17234621]
[1773162400583,0.10000262,71426.0,71410.0,0.00144]
[1773162401326,0.10000262,71426.0,71412.0,0.10222696]